bitfinex/quotes_ETHUSD_20260126
["timestamp","ask_amount","ask_price","bid_price","bid_amount"]
[1769389607173,0.0008,2861.8,2860.6,12.49559308]
[1769389607455,0.0008,2861.8,2860.8,0.95786979]
[1769389607661,0.0008,2861.8,2860.8,0.08399097]
[1769389607879,0.0008,2861.8,2860.8,0.95786791]
[1769389608090,0.0008,2861.8,2860.8,0.08399097]
[1769389608248,0.0008,2861.8,2860.6,12.49559308]
[1769389608456,0.0008,2861.8,2860.7,1.33695504]
[1769389609856,0.0008,2861.8,2860.4,0.87400266]
[1769389610358,0.0008,2861.8,2860.3,0.9580094]
[1769389610559,0.0008,2861.8,2860.3,0.08399097]
[1769389610759,0.0008,2861.8,2860.5,0.87396484]
[1769389610963,0.0008,2861.8,2860.3,0.08399097]
[1769389611157,0.0008,2861.8,2860.5,0.87397098]
[1769389611364,0.0008,2861.8,2860.5,0.87395489]
[1769389611583,0.0008,2861.8,2860.6,1.3285557]
[1769389611785,0.0008,2861.8,2860.4,12.41160211]
[1769389611992,0.0008,2861.8,2860.3,0.87401279]
[1769389612174,0.0008,2861.8,2860.4,0.03496014]
[1769389612369,0.002,2861.6,2860.3,0.03496136]
[1769389612573,0.002,2861.6,2860.4,13.28558531]
[1769389612773,0.002,2861.6,2860.5,1.32855853]
[1769389613592,0.002,2861.6,2860.3,0.08399097]
[1769389613888,0.002,2861.6,2860.3,0.87403075]
[1769389614389,12.80139092,2861.6,2859.7,13.14360211]
[1769389614596,12.80139092,2861.6,2859.7,12.41160211]
[1769389614894,13.53139092,2861.5,2859.7,12.41160211]
[1769389615085,14.64439705,2861.4,2859.6,0.87424021]
[1769389615406,14.64439705,2861.4,2859.6,13.28583139]
[1769389615407,0.732,2861.3,2859.6,13.28583139]
[1769389615582,0.732,2861.3,2859.7,0.87421161]
[1769389615783,0.732,2861.3,2859.2,12.49559308]
[1769389615784,13.67315018,2861.2,2859.2,12.49559308]
[1769389615979,14.40515018,2861.2,2859.6,0.87424412]
[1769389616189,2.52201298,2861.1,2859.7,12.44657081]
[1769389616386,0.732,2861.1,2859.7,12.41160211]
[1769389616587,0.732,2861.1,2859.7,12.49559308]
[1769389616999,0.87375926,2861.2,2859.7,12.49559308]
[1769389617189,0.732,2861.2,2859.7,12.49559308]
[1769389617591,0.87373555,2861.3,2859.8,0.03496748]
[1769389617914,1.84500613,2861.4,2860.1,12.49559308]
[1769389618105,0.87367072,2861.5,2860.2,12.41160211]
[1769389619400,0.87367072,2861.5,2860.1,0.08399097]
[1769389619600,0.002,2861.6,2860.1,12.49559308]
[1769389619925,0.002,2861.6,2860.2,13.28566686]
[1769389620515,0.002,2861.6,2860.3,12.44656347]
[1769389620717,0.003,2863.4,2861.0,12.49559308]
[1769389620902,0.003,2863.4,2861.4,12.41160211]
[1769389620903,0.735,2863.4,2861.4,12.41160211]
[1769389621104,0.735,2863.4,2861.0,0.81599097]
[1769389621105,12.79939092,2863.1,2861.0,0.732]
[1769389621331,0.87326592,2862.9,2861.1,12.49559308]
[1769389621721,16.29213054,2863.1,2861.1,12.41160211]
[1769389621722,17.71606131,2863.1,2861.1,12.41160211]
[1769389621891,17.71606131,2863.1,2860.7,0.08399097]
[1769389621892,12.79939092,2862.5,2860.7,0.08399097]
[1769389622091,12.79939092,2862.3,2860.3,0.732]
[1769389622321,0.732,2862.2,2860.7,0.87389023]
[1769389622524,0.732,2862.2,2860.5,13.28555603]
[1769389622710,13.53139092,2862.2,2860.4,1.00323114]
[1769389622940,13.53139092,2862.2,2860.3,0.732]
[1769389623310,11.77839303,2862.0,2860.1,12.41160211]
[1769389623609,0.732,2861.9,2860.3,0.87401412]
[1769389623807,0.87357607,2861.8,2860.1,13.28568204]
[1769389624436,0.87357607,2861.8,2860.1,13.28569569]
[1769389624640,0.50998804,2861.7,2860.2,1.33696867]
[1769389625311,0.50998804,2861.7,2860.5,0.001]
[1769389625509,0.732,2861.6,2860.5,0.001]
[1769389626033,0.87366765,2861.5,2860.5,0.001]
[1769389626199,1.60565197,2861.6,2860.5,0.001]
[1769389626402,0.47366587,2861.5,2860.5,0.001]
[1769389627000,11.77839303,2861.4,2859.6,0.87423555]
[1769389627197,11.77839303,2861.4,2859.4,12.17104402]
[1769389627398,1.22520589,2861.3,2859.5,13.26918508]
[1769389627725,0.732,2861.2,2859.6,0.87422916]
[1769389628230,0.8737898,2861.1,2859.5,14.14344713]
[1769389628435,12.65218283,2861.1,2859.5,1.2171044]
[1769389628614,11.77839303,2861.0,2859.1,12.05308068]
[1769389628810,11.77839303,2861.0,2859.1,0.001]
[1769389629615,11.77839303,2860.8,2859.1,0.001]
[1769389630139,12.65215229,2861.2,2859.2,12.13607165]
[1769389630446,0.732,2861.1,2859.4,12.13607165]
[1769389630633,1.33841523,2861.0,2859.5,1.25207566]
[1769389630802,1.33841523,2861.0,2859.2,0.08399097]
[1769389631002,13.11680826,2861.0,2859.2,0.08399097]
[1769389631410,13.11680826,2861.0,2859.1,0.001]
[1769389631844,13.11680826,2861.0,2859.1,0.87539639]
[1769389632047,13.11680826,2861.0,2859.1,13.01146804]
[1769389632048,0.87388143,2860.8,2859.1,13.01146804]
[1769389632213,0.732,2860.7,2859.2,1.65091943]
[1769389632821,1.31168083,2860.9,2859.3,12.17104524]
[1769389633019,0.732,2861.0,2859.5,12.13607165]
[1769389633221,0.87369818,2861.4,2859.5,12.13607165]
[1769389633448,0.732,2861.2,2859.7,12.13607165]
[1769389634143,0.732,2861.5,2859.9,12.13607165]
[1769389634311,0.732,2861.5,2860.0,12.08704571]
[1769389634509,0.732,2861.5,2860.1,1.04251314]
[1769389635214,0.732,2861.7,2860.2,12.05208068]
[1769389635647,12.65393857,2862.0,2860.5,12.05208068]
[1769389635648,1.60752004,2862.0,2860.5,12.05208068]
[1769389635816,1.60752004,2862.0,2860.9,12.05208068]
[1769389635817,0.002,2862.0,2860.9,12.05208068]
[1769389636133,0.002,2862.0,2861.0,13.10330938]
[1769389636335,0.002,2862.0,2861.1,1.65091943]
[1769389637637,0.002,2862.0,2861.2,12.31348001]
[1769389638144,0.002,2862.0,2861.3,0.87372872]
[1769389638454,0.002,2862.0,2861.3,13.10321776]
[1769389638753,0.002,2862.8,2861.4,12.31348001]
[1769389639049,0.002,2862.8,2861.7,12.22948904]
[1769389639659,0.002,2863.0,2862.0,12.22948904]
[1769389639956,0.002,2862.7,2861.6,12.31348001]
[1769389640162,0.002,2862.7,2861.7,13.10309563]
[1769389640656,0.002,2863.0,2861.8,12.31348001]
[1769389640853,0.002,2863.0,2861.9,1.31870866]
[1769389641787,0.002,2863.0,2862.1,12.22948904]
[1769389642164,0.006,2863.4,2862.4,0.87339295]
[1769389642765,0.006,2863.4,2862.5,12.22948904]
[1769389644361,0.006,2863.4,2862.5,13.10284987]
[1769389644565,0.006,2863.4,2862.6,13.54817312]
[1769389644761,0.006,2863.4,2862.6,13.63216409]
[1769389645154,0.0008,2864.4,2862.7,12.22948904]
[1769389645155,0.87360365,2864.4,2862.7,12.22948904]
[1769389645361,0.87360365,2864.4,2862.8,0.732]
[1769389646257,0.0008,2864.4,2862.9,0.732]
[1769389646458,12.58526548,2864.3,2862.6,1.31868408]
[1769389646693,12.58526548,2864.3,2862.6,2.19201447]
[1769389647070,12.58526548,2864.3,2862.6,1.31868408]
[1769389647801,12.58526548,2864.3,2862.6,14.42148566]
[1769389648007,12.58526548,2864.3,2862.6,13.54817312]
[1769389648197,0.87287455,2864.1,2862.6,12.22948904]
[1769389648398,0.87287455,2864.1,2862.6,0.732]
[1769389648765,0.87287455,2864.1,2862.4,0.95736398]
[1769389648966,0.87287455,2864.1,2862.5,1.60534968]
[1769389649320,2.1314638,2864.2,2862.8,12.31348001]
[1769389649500,0.87359934,2864.4,2862.9,1.231348]
[1769389651177,0.0008,2864.4,2863.2,0.08399097]
[1769389651376,0.0008,2864.4,2863.0,12.22948904]
[1769389651682,0.0008,2864.4,2863.0,0.732]
[1769389652316,0.002,2864.0,2863.0,13.04548001]
[1769389652502,0.002,2864.0,2863.1,1.46208457]
[1769389652689,0.002,2864.0,2863.2,0.08399097]
[1769389653076,0.002,2864.2,2863.5,13.1559798]
[1769389653272,0.002,2864.2,2863.5,0.731]
[1769389653506,0.0008,2864.4,2864.0,0.08399097]
[1769389653690,0.0008,2864.4,2864.0,1.31533897]
[1769389654310,0.019705,2864.6,2864.1,0.08399097]
[1769389654514,0.019705,2864.6,2863.9,0.08399097]
[1769389654821,0.019705,2864.6,2863.6,0.08399097]
[1769389655409,0.019705,2864.6,2863.8,0.08399097]
[1769389655926,0.019705,2864.6,2864.0,0.08399097]
[1769389656227,0.019705,2864.6,2864.0,1.3290814]
[1769389657130,0.0008,2865.3,2864.4,0.08399097]
[1769389657429,0.0008,2865.3,2864.2,0.08399097]
[1769389657630,0.0008,2865.3,2864.2,0.81499097]
[1769389657931,11.77076092,2865.0,2863.3,0.08399097]
[1769389658139,1.66874313,2864.9,2863.7,0.08399097]
[1769389658692,1.66874313,2864.9,2864.3,0.08399097]
[1769389658911,1.66874313,2864.9,2864.1,0.08399097]
[1769389658912,0.87331056,2865.3,2864.1,0.08399097]
[1769389659110,0.0008,2865.3,2864.3,0.08399097]
[1769389659312,0.0008,2865.3,2863.7,13.23988899]
[1769389659313,0.0008,2865.3,2864.4,0.08399097]
[1769389659917,0.0008,2865.3,2864.6,0.08399097]
[1769389660733,0.0008,2865.3,2864.8,0.08399097]
[1769389661028,0.002,2865.4,2865.0,0.08399097]
[1769389661326,0.0008,2866.2,2865.0,0.95657553]
[1769389661515,0.0008,2866.2,2865.2,0.08399097]
[1769389661928,0.0008,2866.2,2865.4,0.08399097]
[1769389662132,0.0008,2866.2,2865.3,0.08399097]
[1769389662325,0.0008,2866.2,2865.4,0.08399097]
[1769389662821,0.0008,2866.2,2865.5,0.731]
[1769389663131,0.731,2867.3,2865.5,0.731]
[1769389663132,12.64250929,2867.8,2865.9,0.08399097]
[1769389663441,1.61294875,2867.7,2866.5,12.36691333]
[1769389663636,0.87177877,2867.7,2866.0,13.15521824]
[1769389663933,0.87177877,2867.7,2865.5,3.99730669]
[1769389663934,0.87177877,2867.7,2865.6,0.08399097]
[1769389664231,0.87177877,2867.7,2865.5,12.28292236]
[1769389664232,12.64253969,2867.7,2865.7,0.731]
[1769389664398,0.87177877,2867.7,2865.9,13.15524816]
[1769389664603,0.87165719,2868.1,2866.1,12.28292236]
[1769389664805,3.48587755,2868.8,2866.0,0.08399097]
[1769389664806,1.61290469,2868.0,2866.7,12.28292236]
[1769389665029,0.8714445,2868.8,2866.8,13.09791333]
[1769389665234,0.87805097,2869.0,2867.0,12.36691333]
[1769389665406,0.87805097,2869.0,2867.2,12.28292236]
[1769389665611,0.87805097,2869.0,2867.4,12.28292236]
[1769389665841,0.00664534,2869.0,2867.6,0.08399097]
[1769389666137,0.00664534,2869.0,2867.9,12.28292236]
[1769389666706,0.00664534,2869.0,2868.0,13.09791333]
[1769389666924,1.27477819,2869.9,2868.3,12.28292236]
[1769389667137,1.27477819,2869.9,2868.8,0.8714445]
[1769389667319,0.019705,2870.3,2869.4,12.36691333]
[1769389667640,0.019705,2870.3,2869.4,12.81161243]
[1769389667936,3.56668425,2872.1,2870.0,12.36691333]
[1769389667937,0.87060519,2871.6,2870.0,12.36691333]
[1769389668107,0.87047353,2872.0,2870.1,0.731]
[1769389668305,0.87047353,2872.0,2870.3,12.28292236]
[1769389668505,0.87047353,2872.0,2869.4,0.52869007]
[1769389668506,12.64123445,2872.0,2869.7,12.28292236]
[1769389668840,12.64123445,2872.0,2869.5,0.731]
[1769389668841,11.77076092,2871.6,2869.5,0.731]
[1769389669026,4.91667039,2871.7,2869.5,13.09791333]
[1769389669230,0.87059479,2871.6,2869.6,0.87120156]
[1769389669431,1.61239286,2871.9,2870.6,0.08399097]
[1769389669612,0.18188501,2872.8,2870.8,0.08215252]
[1769389669613,0.87125388,2872.1,2870.8,0.08215252]
[1769389669814,0.0008,2872.1,2871.0,0.08399097]
[1769389670139,0.8712453,2872.1,2870.6,0.731]
[1769389670306,0.8712453,2872.1,2869.5,13.23814204]
[1769389670509,0.8712453,2872.1,2869.9,0.08399097]
[1769389670708,0.43530182,2872.0,2869.9,13.61200376]
[1769389671018,0.08399097,2871.8,2869.2,13.2382226]
[1769389671218,0.8706251,2871.5,2869.3,0.08399097]
[1769389671436,12.64138602,2871.5,2869.3,0.08399097]
[1769389671738,12.64138602,2871.5,2869.5,0.08399097]
[1769389671945,12.64138602,2871.5,2869.3,0.08099097]
[1769389671946,11.89876092,2871.4,2869.0,0.08399097]
[1769389672150,11.77076092,2871.0,2868.6,12.28292236]
[1769389673012,11.77076092,2871.0,2868.9,0.08399097]
[1769389673246,0.87080706,2870.9,2868.9,0.08399097]
[1769389673417,12.72555895,2870.9,2868.6,12.28292236]
[1769389673915,0.87080706,2870.9,2869.3,0.08399097]
[1769389674223,0.43540353,2870.8,2869.5,0.08399097]
[1769389674428,0.87079053,2871.0,2869.5,0.08399097]
[1769389675047,0.87079053,2871.0,2869.1,0.08399097]
[1769389675246,3.48310693,2871.1,2869.1,0.08399097]
[1769389675426,3.48310693,2871.1,2868.9,13.23830415]
[1769389675630,3.48310693,2871.1,2869.1,0.08399097]
[1769389675944,0.69662139,2871.0,2869.1,0.08399097]
[1769389676721,0.69662139,2871.0,2868.9,12.36691333]
[1769389677137,12.46738231,2871.0,2868.9,0.08399097]
[1769389677337,11.77076092,2870.8,2868.7,0.08399097]
[1769389677540,1.2641568,2870.7,2868.8,0.03485778]
[1769389677737,1.2641568,2870.7,2868.6,0.08399097]
[1769389678154,11.77076092,2870.5,2867.9,12.28292236]
[1769389678355,11.77076092,2870.5,2868.2,0.08399097]
[1769389678655,1.70593556,2870.4,2868.3,0.03486385]
[1769389679023,1.70593556,2870.4,2868.2,0.11885604]
[1769389679255,0.87098909,2870.3,2868.6,0.08399097]
[1769389679458,2.57691247,2870.4,2869.0,0.08399097]
[1769389679631,0.87097691,2870.4,2869.0,0.08399097]
[1769389680038,0.87097691,2870.4,2868.8,0.08399097]
[1769389680440,0.87097691,2870.4,2868.2,0.08399097]
[1769389680761,2.08,2870.3,2868.2,0.08399097]
[1769389680956,12.06585861,2870.2,2868.1,0.0016]
[1769389681456,0.87104978,2870.1,2868.4,12.36691333]
[1769389681654,3.77929684,2870.2,2868.4,12.36691333]
[1769389681655,0.87103463,2870.2,2868.6,0.08399097]
[1769389681843,0.87103463,2870.2,2868.4,12.28292236]
[1769389682046,5.37258568,2870.6,2868.7,0.08399097]
[1769389682047,0.87089807,2870.6,2868.7,0.08399097]
[1769389682250,1.61252513,2870.5,2868.7,0.11884996]
[1769389683074,1.61252513,2870.5,2868.4,12.28292236]
[1769389683224,0.87095875,2870.4,2868.4,12.28292236]
[1769389683430,13.38823701,2870.4,2868.1,0.08559097]
[1769389683635,5.28859471,2870.1,2868.1,0.0016]
[1769389683837,0.53725857,2870.0,2868.1,13.35667564]
[1769389684038,5.28859471,2870.1,2868.1,12.48503533]
[1769389684241,12.43328729,2870.0,2868.1,0.0016]
[1769389684439,12.43328729,2870.0,2867.7,0.08399097]
[1769389684440,0.0008,2869.6,2867.8,0.87172676]
[1769389684654,0.0008,2869.6,2867.7,0.08205097]
[1769389684854,0.0008,2869.6,2867.6,1.01204214]
[1769389684855,12.43408729,2869.6,2867.6,1.01204214]
[1769389685055,13.68509512,2869.5,2867.3,0.0165746]
[1769389685335,0.87132301,2869.2,2867.1,0.88852354]
[1769389685534,0.87132301,2869.2,2867.2,0.08399097]
[1769389686165,0.87132301,2869.2,2867.2,0.02792095]
[1769389686380,0.87132301,2869.2,2867.5,0.08399097]
[1769389686547,0.43566151,2869.1,2867.6,1.25674263]
[1769389686886,0.87130708,2869.3,2867.7,12.5674263]
[1769389687070,0.87130708,2869.3,2867.8,0.03486993]
[1769389687270,0.87130708,2869.3,2867.7,12.5674263]
[1769389687476,3.48565963,2869.6,2867.7,13.43920113]
[1769389687679,3.48565963,2869.6,2867.7,12.5674263]
[1769389687982,0.43568308,2869.5,2867.8,1.43668994]
[1769389688148,0.43568308,2869.5,2867.5,0.95583043]
[1769389688350,0.43568308,2869.5,2867.7,0.95574131]
[1769389688561,0.0008,2869.6,2867.8,0.03486993]
[1769389688771,0.0008,2869.6,2867.7,0.08399097]
[1769389688980,0.0008,2869.6,2867.9,0.001]
[1769389688981,12.43408729,2869.6,2867.9,0.001]
[1769389689481,0.87123192,2869.5,2867.9,0.001]
[1769389689975,12.43328729,2869.3,2867.9,0.001]
[1769389690176,1.98172783,2869.2,2867.9,0.001]
[1769389690891,14.41501512,2869.2,2867.9,0.001]
[1769389691197,13.68501512,2869.2,2867.9,0.001]
[1769389691358,1.25172783,2869.2,2867.9,0.001]
[1769389691556,0.87129264,2869.3,2867.9,0.001]
[1769389692203,0.73,2869.2,2867.9,0.001]
[1769389692697,0.73,2869.1,2867.9,0.001]
[1769389692910,0.87129264,2869.3,2867.9,0.001]
[1769389693289,0.87123192,2869.5,2868.0,0.08399097]
[1769389693461,0.43569349,2869.4,2868.0,1.34432059]
[1769389693662,0.87129264,2869.3,2868.0,1.26032962]
[1769389694061,0.87129264,2869.3,2868.0,2.132016]
[1769389694374,0.87129264,2869.3,2868.0,1.26032962]
[1769389695166,0.87129264,2869.3,2867.9,0.08499097]
[1769389696267,0.43569349,2869.4,2867.9,13.70157797]
[1769389696605,1.30696501,2869.4,2867.9,13.70157797]
[1769389696977,1.30696501,2869.4,2867.9,12.82986326]
[1769389697166,0.4791961,2869.3,2867.9,12.82986326]
[1769389697796,0.87132301,2869.2,2867.9,12.82986326]
[1769389697976,3.96447219,2869.3,2867.9,12.82986326]
[1769389697977,0.4791961,2869.3,2867.9,13.70157272]
[1769389698186,0.4791961,2869.3,2868.1,0.08399097]
[1769389698412,0.87127904,2869.4,2868.1,0.08399097]
[1769389698909,0.87123192,2869.5,2868.0,12.82886326]
[1769389699204,0.0008,2869.6,2868.0,12.82886326]
[1769389699205,0.87201946,2869.6,2868.0,12.82886326]
[1769389699571,0.87201946,2869.6,2868.3,12.74487229]
[1769389699572,0.0008,2869.6,2868.3,12.74487229]
[1769389699876,0.0008,2869.6,2868.4,14.11174959]
[1769389699877,0.43645589,2869.6,2868.4,14.11174959]
[1769389700196,0.0008,2869.6,2868.4,14.98331132]
[1769389700689,0.0008,2869.6,2868.6,0.08399097]
[1769389700902,0.0008,2869.6,2868.6,12.82886326]
[1769389701265,0.002,2869.1,2868.6,12.82886326]
[1769389701572,0.0008,2869.6,2868.7,14.02775862]
[1769389701771,0.0008,2869.6,2868.8,13.70030776]
[1769389702179,0.87095875,2870.4,2868.8,13.70030776]
[1769389703180,0.87095875,2870.4,2868.8,12.74487229]
[1769389703388,0.87095875,2870.4,2868.5,0.08399097]
[1769389703389,13.33945056,2870.4,2868.3,12.74487229]
[1769389703692,13.33945056,2870.4,2868.3,14.89093481]
[1769389703693,0.43575938,2870.3,2868.3,14.89093481]
[1769389703892,0.87101944,2870.2,2868.3,14.89093462]
[1769389704093,0.87101944,2870.2,2868.3,14.01935952]
[1769389704335,13.33951125,2870.2,2868.3,14.01935952]
[1769389704532,14.19442665,2870.1,2868.3,14.01935952]
[1769389704730,1.72593484,2870.1,2868.4,12.82886326]
[1769389705010,1.30675242,2870.3,2868.6,12.82886326]
[1769389705908,1.30675242,2870.3,2868.7,0.90631302]
[1769389706115,1.30675242,2870.3,2868.6,13.70035303]
[1769389706281,1.30675242,2870.3,2868.6,12.82886326]
[1769389706482,13.77524423,2870.3,2868.4,0.08399097]
[1769389706682,0.47905934,2870.2,2868.5,0.22300668]
[1769389706916,12.94755115,2870.2,2868.3,1.27448723]
[1769389707221,12.94755115,2870.2,2867.9,0.87270902]
[1769389707716,12.94755115,2870.2,2867.9,0.87271702]
[1769389708090,12.46849181,2870.0,2868.0,0.95567507]
[1769389708419,12.46849181,2870.0,2867.9,0.87269791]
[1769389708608,12.46849181,2870.0,2867.9,0.001]
[1769389708806,13.80244597,2869.9,2867.9,1.36276047]
[1769389709209,13.80244597,2869.9,2868.0,0.0348675]
[1769389710183,12.46849181,2869.7,2867.9,0.001]
[1769389710421,12.46849181,2869.1,2867.9,0.001]
[1769389710580,1.77570865,2869.0,2867.9,0.001]
[1769389711016,1.77570865,2869.0,2867.9,12.74587229]
[1769389711312,0.73,2869.7,2868.0,12.82886326]
[1769389711681,0.73,2869.7,2868.0,12.74487229]
[1769389712406,0.87120156,2869.6,2868.0,12.74487229]
[1769389712613,1.60120156,2869.6,2868.0,12.74487229]
[1769389712915,0.50860078,2869.5,2868.0,1.27458723]
[1769389713127,0.50860078,2869.5,2867.9,0.001]
[1769389713415,12.94352081,2869.4,2868.2,0.001]
[1769389713585,12.85952984,2869.4,2868.2,0.001]
[1769389714416,0.87129264,2869.3,2868.2,0.001]
[1769389714814,0.87129264,2869.3,2867.9,0.001]
[1769389714815,12.85952984,2869.2,2867.9,0.001]
[1769389715015,14.24101119,2869.1,2867.9,0.001]
[1769389715813,0.73,2869.0,2867.9,0.001]
[1769389716581,0.87141413,2868.9,2867.9,0.001]
[1769389717219,0.87141413,2868.9,2867.9,12.78627808]
[1769389718323,0.87141413,2868.9,2867.9,0.001]
[1769389718526,0.87147488,2868.7,2867.1,13.65721001]
[1769389718728,0.87147488,2868.7,2867.3,12.78527808]
[1769389719526,0.87147488,2868.7,2867.5,12.78527808]
[1769389719705,0.87147488,2868.7,2867.6,0.03487236]
[1769389719902,0.87147488,2868.7,2867.1,0.87193193]
[1769389719903,0.47930815,2868.6,2867.1,0.87193193]
[1769389720228,0.47930815,2868.6,2868.2,0.08399097]
[1769389720410,0.87145463,2868.8,2868.2,0.08399097]
[1769389720623,0.002,2869.7,2868.2,0.08399097]
[1769389720813,0.87120156,2869.6,2868.7,0.04207379]
[1769389721136,0.87120156,2869.6,2868.5,0.08399097]
[1769389721343,0.87120156,2869.6,2868.2,0.08399097]
[1769389721547,0.87318979,2869.7,2868.8,0.08399097]
[1769389721698,0.87318979,2869.7,2868.8,0.06709097]
[1769389721900,0.002,2869.7,2868.8,0.06709097]
[1769389722099,0.87317226,2869.7,2868.8,0.06709097]
[1769389722314,0.87317226,2869.7,2869.0,0.08399097]
[1769389722315,0.002,2869.7,2869.0,0.08399097]
[1769389722518,0.002,2869.7,2869.3,0.08399097]
[1769389722717,0.0028,2870.5,2869.3,0.08399097]
[1769389723004,0.0028,2870.5,2869.7,12.86926905]
[1769389724011,4.21237137,2871.7,2869.7,12.86926905]
[1769389724410,4.21237137,2871.7,2869.9,0.08399097]
[1769389725328,4.21237137,2871.7,2869.7,12.86926905]
[1769389725730,0.87124399,2872.1,2870.7,0.08399097]
[1769389726037,0.87125571,2872.1,2870.9,0.08399097]
[1769389726215,0.0008,2872.1,2870.9,0.08399097]
[1769389726609,0.0008,2872.1,2870.7,12.86926905]
[1769389727138,0.002,2871.1,2870.7,12.78527808]
[1769389727438,0.002,2871.1,2870.2,12.86926905]
[1769389727818,0.0008,2872.1,2870.6,12.86926905]
[1769389728008,0.0008,2872.1,2870.8,12.86926905]
[1769389728709,0.0008,2872.1,2870.6,0.08399097]
[1769389728909,0.003,2870.8,2870.6,0.08399097]
[1769389729235,0.003,2870.8,2870.4,0.08399097]
[1769389729433,0.003,2870.8,2870.3,12.78527808]
[1769389730149,0.003,2870.8,2870.2,0.08399097]
[1769389730943,0.003,2870.8,2869.9,0.08399097]
[1769389731245,0.003,2870.8,2869.3,13.74055728]
[1769389731422,0.003,2870.8,2869.4,0.03485049]
[1769389731622,0.003,2870.8,2869.3,12.86926905]
[1769389731848,4.88529058,2870.7,2868.8,0.06709097]
[1769389732152,4.88529058,2870.7,2868.7,12.78527808]
[1769389732153,1.77478204,2870.6,2868.7,12.78527808]
[1769389732452,14.63431188,2870.6,2868.3,0.73]
[1769389732756,14.63431188,2870.6,2868.1,0.87262887]
[1769389732757,0.128,2869.9,2868.1,0.001]
[1769389732932,0.08399097,2869.4,2868.1,0.001]
[1769389733136,12.94352081,2869.3,2867.2,12.78527808]
[1769389733336,12.94352081,2869.3,2866.6,12.78527808]
[1769389733337,12.94352081,2868.9,2866.6,12.78527808]
[1769389733655,4.88529058,2868.4,2866.3,0.0016]
[1769389733855,0.73,2868.5,2866.5,0.95611859]
[1769389734021,0.73,2868.5,2866.7,0.95605145]
[1769389734225,17.74482042,2868.9,2866.9,0.08399097]
[1769389734428,1.77448204,2868.8,2866.9,0.08399097]
[1769389734950,0.87147488,2868.7,2866.9,0.08399097]
[1769389735674,0.87147488,2868.7,2866.7,0.08399097]
[1769389735854,0.87147488,2868.7,2866.6,0.03488453]
[1769389736062,12.94352081,2868.6,2866.3,0.0016]
[1769389736355,17.82881139,2868.4,2866.3,0.0016]
[1769389736556,0.08399097,2868.2,2866.3,0.0016]
[1769389736939,0.87165719,2868.1,2866.3,0.0016]
[1769389737131,0.87165719,2868.1,2866.4,12.86926905]
[1769389737324,0.87165719,2868.1,2866.5,12.78527808]
[1769389737635,0.4358286,2868.0,2866.6,14.10708952]
[1769389737856,0.4358286,2868.0,2866.6,14.07220499]
[1769389738133,1.77448204,2868.8,2866.7,12.90415236]
[1769389738134,3.48599946,2868.7,2866.7,12.90415236]
[1769389738433,3.48599946,2868.7,2866.7,12.86926905]
[1769389738638,3.48599946,2868.7,2866.8,0.03488209]
[1769389738823,0.87129264,2869.3,2867.0,0.87199162]
[1769389739026,0.128,2869.1,2867.1,14.19428259]
[1769389739229,0.128,2869.1,2867.1,14.15940415]
[1769389739432,4.88529058,2869.0,2867.1,14.15940415]
[1769389739625,4.88529058,2869.0,2866.9,0.08399097]
[1769389739626,12.94352081,2868.9,2866.9,0.001]
[1769389739831,0.128,2868.8,2866.9,0.001]
[1769389740027,0.858,2868.8,2866.9,0.001]
[1769389740228,0.73,2869.0,2867.0,0.03487966]
[1769389740454,0.36971545,2869.2,2867.1,12.78527808]
[1769389740728,0.36971545,2869.2,2867.5,12.78527808]
[1769389740931,0.87135338,2869.1,2867.6,13.69193292]
[1769389741153,1.2410587,2869.2,2867.6,13.65706056]
[1769389741461,0.87134325,2869.2,2867.6,12.78527808]
[1769389741873,0.87134325,2869.2,2867.2,1.28201577]
[1769389742261,0.87134325,2869.2,2867.3,0.87189961]
[1769389742440,0.87134325,2869.2,2867.3,12.86926905]
[1769389742758,0.87120156,2869.6,2867.9,12.86926905]
[1769389742963,0.87098909,2870.3,2868.2,13.65690488]
[1769389743144,1.60098909,2870.3,2868.3,12.82014193]
[1769389743340,0.87098909,2870.3,2868.6,12.06783562]
[1769389744370,0.87385239,2870.8,2869.2,12.06783562]
[1769389744543,0.003,2870.8,2869.4,12.06783562]
[1769389744871,0.003,2870.8,2869.5,12.15182659]
[1769389745180,0.003,2870.8,2869.5,13.02304519]
[1769389745376,0.003,2870.8,2869.5,13.02305693]
[1769389746079,0.003,2870.8,2869.3,1.21518266]
[1769389746246,0.003,2870.8,2868.9,12.06783562]
[1769389746437,0.003,2870.8,2869.0,0.87138167]
[1769389746837,0.003,2870.8,2869.2,0.87132209]
[1769389747048,0.003,2870.8,2869.5,0.08399097]
[1769389747382,0.003,2870.8,2869.1,0.08399097]
[1769389747546,0.003,2870.8,2869.1,1.39470893]
[1769389747962,0.003,2870.8,2868.9,12.15182659]
[1769389748191,0.003,2870.8,2868.9,12.06783562]
[1769389748380,0.003,2870.8,2868.9,12.93924516]
[1769389748541,0.003,2870.8,2868.9,12.06783562]
[1769389748747,4.88529058,2870.4,2868.5,0.08399097]
[1769389748975,4.88529058,2870.4,2868.5,1.39472862]
[1769389748976,0.87101944,2870.2,2868.5,1.39472862]
[1769389749176,0.87101944,2870.2,2868.5,1.31073765]
[1769389749745,0.87101944,2870.2,2867.6,12.06783562]
[1769389749746,0.08399097,2869.6,2867.6,12.06783562]
[1769389749950,0.73,2869.5,2867.6,12.06783562]
[1769389750378,0.73,2869.4,2867.6,12.06783562]
[1769389750676,0.73,2869.4,2867.1,0.87195913]
[1769389750983,12.39045555,2869.3,2867.1,0.03487844]
[1769389751276,2.18336857,2869.2,2867.2,1.21027141]
[1769389752060,0.08399097,2869.1,2867.2,1.21027141]
[1769389752385,0.73,2869.0,2867.2,1.21027141]
[1769389753094,0.87141413,2868.9,2867.2,1.21027141]
[1769389753295,0.87141413,2868.9,2867.0,12.06783562]
[1769389753973,12.39045555,2868.7,2866.9,0.001]
[1769389754185,0.08399097,2868.5,2866.9,0.001]
[1769389754516,12.30646458,2868.3,2866.9,0.001]
[1769389754675,1.23064646,2868.2,2866.9,0.001]
[1769389755198,0.87165719,2868.1,2866.9,0.001]
[1769389756168,0.73,2868.0,2866.9,0.001]
[1769389757405,0.73,2868.0,2866.3,0.0016]
[1769389757406,12.24566081,2867.8,2866.3,0.0016]
[1769389757607,13.52178876,2867.7,2866.3,0.0016]
[1769389757808,0.08399097,2867.5,2866.3,0.0008]
[1769389758671,12.93165178,2867.4,2865.4,12.08032882]
[1769389758974,12.93165178,2867.4,2865.5,0.03489792]